fUST/lending_fUST_20250827
["ID","MTS","AMOUNT","RATE_DAILY","PERIOD"]
[381568201,1756285860605,-807.48,0.00023714,2]
[381568202,1756285860613,-669.06,0.00023714,2]
[381568203,1756285860622,-480.0,0.00023714,2]
[381568204,1756285860633,-480.0,0.00023714,2]
[381568205,1756285860642,-480.0,0.00023714,2]
[381568206,1756285860651,-206.125945,0.00023714,7]
[381568207,1756285860660,-206.125945,0.00023714,7]
[381568208,1756285860670,-206.125945,0.00023714,7]
[381568209,1756285860679,-516.23,0.00023714,2]
[381568210,1756285860688,-206.125945,0.00023714,7]
[381568211,1756285860698,-480.0,0.00023714,2]
[381568212,1756285860707,-901.21,0.00023714,2]
[381568213,1756285860716,-480.0,0.00023714,2]
[381568214,1756285860725,-480.0,0.00023714,2]
[381568215,1756285860735,-480.0,0.00023714,2]
[381568216,1756285860744,-480.0,0.00023714,2]
[381568217,1756285860754,-722.63,0.00023714,2]
[381568218,1756285860763,-480.0,0.00023714,2]
[381568219,1756285860772,-849.45,0.00023714,2]
[381568220,1756285860782,-480.0,0.00023714,2]
[381568221,1756285860791,-480.0,0.00023714,2]
[381568222,1756285860800,-480.0,0.00023714,2]
[381568223,1756285860809,-480.0,0.00023714,2]
[381568224,1756285860818,-968.86,0.00023714,2]
[381568225,1756285860827,-1060.07,0.00023714,2]
[381568226,1756285860837,-615.02,0.00023714,2]
[381568227,1756285860846,-151.0,0.00023714,7]
[381568228,1756285860855,-480.0,0.00023714,2]
[381568229,1756285860865,-784.01,0.00023714,2]
[381568230,1756285860875,-480.0,0.00023714,2]
[381568231,1756285860884,-501.06,0.00023714,2]
[381568232,1756285860894,-480.0,0.00023714,2]
[381568233,1756285860904,-1471.98,0.00023714,2]
[381568234,1756285860914,-480.0,0.00023714,2]
[381568235,1756285860923,-525.55,0.00023714,2]
[381568236,1756285860933,-151.0,0.00023714,7]
[381568237,1756285860942,-800.69,0.00023714,2]
[381568238,1756285860951,-200.0,0.00023714,7]
[381568239,1756285860960,-200.0,0.00023714,7]
[381568240,1756285860970,-200.0,0.00023714,7]
[381568241,1756285860984,-480.0,0.00023714,2]
[381568242,1756285860994,-200.0,0.00023714,7]
[381568243,1756285861003,-480.0,0.00023714,2]
[381568244,1756285861012,-480.0,0.00023714,2]
[381568245,1756285861022,-926.66,0.00023714,2]
[381568246,1756285861033,-480.0,0.00023714,2]
[381568247,1756285861043,-480.0,0.00023714,2]
[381568248,1756285861052,-800.84,0.00023714,2]
[381568249,1756285861061,-563.33,0.00023714,2]
[381568250,1756285861071,-151.0,0.00023714,7]
[381568251,1756285861081,-265.914854,0.00023714,7]
[381568252,1756285861094,-265.914854,0.00023714,7]
[381568253,1756285861103,-265.914854,0.00023714,7]
[381568254,1756285861112,-480.0,0.00023714,2]
[381568255,1756285861122,-265.91485,0.00023714,7]
[381568256,1756285861132,-943.39,0.00023714,2]
[381568257,1756285861142,-480.0,0.00023714,2]
[381568258,1756285861151,-480.0,0.00023714,2]
[381568259,1756285861161,-2384.24,0.00023714,2]
[381568260,1756285861171,-530.94,0.00023714,2]
[381568261,1756285861180,-480.0,0.00023714,2]
[381568262,1756285861190,-251.306346,0.00023714,7]
[381568263,1756285861199,-251.306346,0.00023714,7]
[381568264,1756285861208,-251.306346,0.00023714,7]
[381568265,1756285861218,-706.24,0.00023714,2]
[381568266,1756285861228,-816.28,0.00023714,2]
[381568267,1756285861237,-251.306343,0.00023714,7]
[381568268,1756285861246,-244.594158,0.00023714,7]
[381568269,1756285861255,-244.594158,0.00023714,7]
[381568270,1756285861268,-244.594158,0.00023714,7]
[381568271,1756285861278,-244.594154,0.00023714,7]
[381568272,1756285861287,-480.0,0.00023714,2]
[381568273,1756285861297,-1000.0,0.00023721,2]
[381568274,1756285861308,-502.53922892,0.00023721,2]
[381568275,1756285861317,-673.70079383,0.00023721,2]
[381568276,1756285861327,-1000.0,0.00023721,2]
[381568277,1756285861336,-1000.0,0.00023721,2]
[381568278,1756285861351,-502.15933556,0.00023721,2]
[381568279,1756285861360,-1000.0,0.00023721,2]
[381568280,1756285861369,-507.91534825,0.00023721,2]
[381568281,1756285861379,-1000.0,0.00023721,2]
[381568282,1756285861391,-500.0,0.00023721,2]
[381568283,1756285861400,-507.86890135,0.0002377,2]
[381568284,1756285861410,-500.0,0.0002377,2]
[381568285,1756285861419,-162.17507124,0.0002377,2]
[381568286,1756285861429,-500.0,0.00023773,2]
[381568287,1756285861439,-501.41913264,0.00023773,2]
[381568288,1756285861449,-500.0,0.00023773,2]
[381568289,1756285861458,-500.0,0.00023773,2]
[381568290,1756285861468,-500.0,0.00023773,2]
[381568291,1756285861478,-424.02450376,0.00023773,2]
[381568292,1756285861487,-165.3498966,0.00023773,2]
[381568293,1756285861497,-500.0,0.00023773,2]
[381568294,1756285861506,-500.0,0.00023773,2]
[381568295,1756285861516,-561.91087916,0.00023773,2]
[381568296,1756285861526,-500.0,0.00023773,2]
[381568297,1756285861535,-500.0,0.00023773,2]
[381568298,1756285861545,-500.0,0.00023773,2]
[381568299,1756285861555,-500.0,0.00023773,2]
[381568300,1756285861564,-500.0,0.00023773,2]
[381568301,1756285861573,-500.0,0.00023773,2]
[381568302,1756285861582,-500.0,0.00023773,2]
[381568303,1756285861593,-500.0,0.00023773,2]
[381568304,1756285861602,-500.0,0.00023773,2]
[381568305,1756285861612,-500.0,0.00023773,2]
[381568306,1756285861621,-2133.04069438,0.00023777,2]
[381568307,1756285861632,-151.0,0.000238,5]
[381568308,1756285861643,-151.0,0.000238,8]
[381568309,1756285861653,-212.24456156,0.00023806,2]
[381568310,1756285861662,-480.0,0.00023809,2]
[381568311,1756285861672,-980.51,0.00023809,2]
[381568312,1756285861683,-1507.06,0.00023809,2]
[381568313,1756285861692,-2202.7,0.00023809,2]
[381568314,1756285861701,-3390.88,0.00023809,2]
[381568315,1756285861711,-480.0,0.00023811,2]
[381568316,1756285861720,-511.38866386,0.00023811,2]
[381568317,1756285861729,-504.45,0.00023811,2]
[381568318,1756285861738,-480.0,0.00023811,2]
[381568319,1756285861748,-1844.79,0.00023811,2]
[381568320,1756285861757,-695.09,0.00023811,2]
[381568321,1756285861767,-626.12,0.00023811,2]
[381568322,1756285861776,-480.0,0.00023811,2]
[381568323,1756285861786,-4054.27,0.00023811,2]
[381568324,1756285861795,-7453.14,0.00023811,2]
[381568325,1756285861805,-1277.04,0.00023811,2]
[381568326,1756285861814,-630.33,0.00023811,2]
[381568327,1756285861824,-2352.9,0.00023811,2]
[381568328,1756285861833,-829.42,0.00023811,2]
[381568329,1756285861843,-1288.51,0.00023811,2]
[381568330,1756285861852,-504.14361721,0.00023825,2]
[381568331,1756285861862,-250.0,0.0002385,2]
[381568332,1756285861871,-457.72594206,0.00023899,2]
[381568333,1756285861881,-480.0,0.00023899,2]
[381568334,1756285861892,-480.0,0.00023899,2]
[381568335,1756285861901,-480.0,0.00023899,2]
[381568336,1756285861911,-480.0,0.00023899,2]
[381568337,1756285861921,-480.0,0.00023899,2]
[381568338,1756285861931,-480.0,0.00023899,2]
[381568339,1756285861940,-2736.5,0.00023899,2]
[381568340,1756285861950,-2843.68,0.00023899,2]
[381568341,1756285861959,-480.0,0.00023899,2]
[381568342,1756285861968,-13159.72,0.00023899,2]
[381568343,1756285861978,-3876.01,0.00023899,2]
[381568344,1756285861987,-480.0,0.00023899,2]
[381568345,1756285861996,-560.35,0.00023899,2]
[381568346,1756285862006,-2907.02,0.00023899,2]
[381568347,1756285862016,-480.0,0.00023899,2]
[381568348,1756285862026,-480.0,0.00023899,2]
[381568349,1756285862036,-510.86,0.00023899,2]
[381568350,1756285862045,-1176.8,0.00023899,2]
[381568351,1756285862055,-480.0,0.00023899,2]
[381568352,1756285862065,-2885.07,0.00023899,2]
[381568353,1756285862075,-151.0,0.000239,8]
[381568354,1756285862087,-480.0,0.00023942,2]
[381568355,1756285862104,-480.0,0.00023942,2]
[381568356,1756285862113,-480.0,0.00023942,2]
[381568357,1756285862123,-480.0,0.00023942,2]
[381568358,1756285862132,-480.0,0.00023942,2]
[381568359,1756285862144,-1304.71,0.00023942,2]
[381568360,1756285862153,-500.0,0.00023942,2]
[381568361,1756285862164,-480.0,0.00023975,2]
[381568362,1756285862175,-480.0,0.00023975,2]
[381568363,1756285862185,-468.91547335,0.00023975,2]
[381568364,1756285862194,-541.47,0.00023975,2]
[381568365,1756285862203,-498.9,0.00023975,2]
[381568366,1756285862212,-563.3,0.00023975,2]
[381568367,1756285862222,-480.0,0.00023975,2]
[381568368,1756285862231,-480.0,0.00023975,2]
[381568369,1756285862240,-480.0,0.00023975,2]
[381568370,1756285862249,-480.0,0.00023975,2]
[381568371,1756285862258,-720.79,0.00023975,2]
[381568372,1756285862267,-480.0,0.00023975,2]
[381568373,1756285862276,-480.0,0.00023975,2]
[381568374,1756285862285,-480.0,0.00023975,2]
[381568375,1756285862294,-480.0,0.00023975,2]
[381568376,1756285862303,-501.91,0.00023975,2]
[381568377,1756285862312,-480.0,0.00023975,2]
[381568378,1756285862321,-730.1,0.00023975,2]
[381568379,1756285862330,-702.89,0.00023975,2]
[381568380,1756285862339,-480.0,0.00023975,2]
[381568381,1756285862349,-565.76,0.00023975,2]
[381568382,1756285862362,-674.26,0.00023975,2]
[381568383,1756285862371,-480.0,0.00023975,2]
[381568384,1756285862381,-679.8,0.00023975,2]
[381568385,1756285862391,-480.0,0.00023975,2]
[381568386,1756285862401,-480.0,0.00023975,2]
[381568387,1756285862411,-480.0,0.00023975,2]
[381568388,1756285862421,-480.0,0.00023975,2]
[381568389,1756285862430,-712.05,0.00023975,2]
[381568390,1756285862440,-480.0,0.00023975,2]
[381568391,1756285862450,-480.0,0.00023975,2]
[381568392,1756285862459,-979.4,0.00023975,2]
[381568393,1756285862468,-712.53,0.00023975,2]
[381568394,1756285862477,-1469.65,0.00023975,2]
[381568395,1756285862487,-480.0,0.00023975,2]
[381568396,1756285862496,-639.0,0.00023975,2]
[381568397,1756285862505,-480.0,0.00023975,2]
[381568398,1756285862514,-480.0,0.00023975,2]
[381568399,1756285862523,-817.51,0.00023975,2]
[381568400,1756285862532,-369.15194008,0.00023975,2]
[381568401,1756285862542,-480.0,0.00023975,2]
[381568402,1756285862551,-672.32,0.00023975,2]
[381568403,1756285862560,-506.58,0.00023975,2]
[381568404,1756285862569,-4677.51,0.00023975,2]
[381568405,1756285862579,-480.0,0.00023975,2]
[381568406,1756285862589,-480.0,0.00023975,2]
[381568407,1756285862598,-2100.06,0.00023975,2]
[381568408,1756285862608,-657.34,0.00023975,2]
[381568409,1756285862617,-1882.32,0.00023975,2]
[381568410,1756285862626,-587.34,0.00023975,2]
[381568411,1756285862637,-2412.59,0.00023975,2]
[381568412,1756285862647,-480.0,0.00023975,2]
[381568413,1756285862657,-480.0,0.00023975,2]
[381568414,1756285862666,-495.16,0.00023975,2]
[381568415,1756285862675,-480.0,0.00023975,2]
[381568416,1756285862684,-480.0,0.00023975,2]
[381568417,1756285862694,-820.71,0.00023975,2]
[381568418,1756285862703,-480.0,0.00023975,2]
[381568419,1756285862712,-748.5,0.00023975,2]
[381568420,1756285862721,-480.0,0.00023975,2]
[381568421,1756285862730,-549.5,0.00023975,2]
[381568422,1756285862740,-536.98,0.00023975,2]
[381568423,1756285862749,-1687.19,0.00023975,2]
[381568424,1756285862758,-480.0,0.00023975,2]
[381568425,1756285862768,-1124.67,0.00023975,2]
[381568426,1756285862777,-939.76,0.00023975,2]
[381568427,1756285862786,-973.37,0.00023983,2]
[381568428,1756285862795,-598.01,0.00023983,2]
[381568429,1756285862805,-480.0,0.00023983,2]
[381568430,1756285862814,-480.0,0.00023983,2]
[381568431,1756285862969,-480.0,0.00023983,2]
[381568432,1756285862980,-480.0,0.00023983,2]
[381568433,1756285862989,-480.0,0.00023983,2]
[381568434,1756285862999,-480.0,0.00023983,2]
[381568435,1756285863009,-480.0,0.00023983,2]
[381568436,1756285863018,-480.0,0.00023983,2]
[381568437,1756285863028,-692.86,0.00023983,2]
[381568438,1756285863038,-480.0,0.00023983,2]
[381568439,1756285863048,-480.0,0.00023983,2]
[381568440,1756285863058,-823.54,0.00023983,2]
[381568441,1756285863068,-480.0,0.00023983,2]
[381568442,1756285863079,-904.0,0.00023983,2]
[381568443,1756285863094,-539.95,0.00023983,2]
[381568444,1756285863104,-543.54,0.00023983,2]
[381568445,1756285863115,-480.0,0.00023983,2]
[381568446,1756285863126,-589.92,0.00023983,2]
[381568447,1756285863139,-480.0,0.00023983,2]
[381568448,1756285863149,-573.33,0.00023983,2]
[381568449,1756285863159,-518.46,0.00023983,2]
[381568450,1756285863171,-1072.36,0.00023983,2]
[381568451,1756285863181,-661.31,0.00023983,2]
[381568452,1756285863190,-480.0,0.00023983,2]
[381568453,1756285863200,-480.0,0.00023983,2]
[381568454,1756285863209,-1579.27,0.00023983,2]
[381568455,1756285863219,-480.0,0.00023983,2]
[381568456,1756285863230,-2289.21,0.00023983,2]
[381568457,1756285863240,-480.0,0.00023983,2]
[381568458,1756285863250,-1276.73,0.00023983,2]
[381568459,1756285863261,-151.0,0.00023983,7]
[381568460,1756285863271,-151.0,0.00023983,7]
[381568461,1756285863282,-151.0,0.00023983,7]
[381568462,1756285863293,-480.0,0.00023983,2]
[381568463,1756285863303,-151.0,0.00023983,7]
[381568464,1756285863313,-269.071312,0.00023983,7]
[381568465,1756285863323,-588.66,0.00023983,2]
[381568466,1756285863332,-480.0,0.00023983,2]
[381568467,1756285863341,-480.0,0.00023983,2]
[381568468,1756285863351,-480.0,0.00023983,2]
[381568469,1756285863360,-638.04,0.00023983,2]
[381568470,1756285863370,-483.41,0.00023983,2]
[381568471,1756285863379,-565.0,0.00023983,2]
[381568472,1756285863390,-480.0,0.00023983,2]
[381568473,1756285863400,-500.0,0.00023983,2]
[381568474,1756285863412,-726.75,0.00023983,2]
[381568475,1756285863421,-737.76,0.00023983,2]
[381568476,1756285863430,-480.0,0.00023983,2]
[381568477,1756285863440,-480.0,0.00023983,2]
[381568478,1756285863449,-755.95,0.00023983,2]
[381568479,1756285863459,-546.92,0.00023983,2]
[381568480,1756285863468,-480.0,0.00023983,2]
[381568481,1756285863477,-480.0,0.00023983,2]
[381568482,1756285863487,-1220.67,0.00023983,2]
[381568483,1756285863496,-480.0,0.00023983,2]
[381568484,1756285863506,-1004.72,0.00023983,2]
[381568485,1756285863516,-156.57748121,0.00023983,2]
[381568486,1756285863526,-624.24,0.00023983,2]
[381568487,1756285863535,-831.69,0.00023983,2]
[381568488,1756285863544,-1158.97,0.00023983,2]
[381568489,1756285863554,-894.53,0.00023983,2]
[381568490,1756285863564,-578.64,0.00023983,2]
[381568491,1756285863574,-553.43,0.00023983,2]
[381568492,1756285863584,-480.0,0.00023983,2]
[381568493,1756285863594,-1766.57,0.00023983,2]
[381568494,1756285863603,-518.24,0.00023983,2]
[381568495,1756285863613,-1075.97,0.00023983,2]
[381568496,1756285863623,-480.0,0.00023983,2]
[381568497,1756285863632,-480.0,0.00023983,2]
[381568498,1756285863647,-480.0,0.00023983,2]
[381568499,1756285863657,-480.0,0.00023983,2]
[381568500,1756285863667,-480.0,0.00023983,2]
[381568501,1756285863677,-480.0,0.00023983,2]
[381568502,1756285863687,-580.93,0.00023983,2]
[381568503,1756285863697,-480.0,0.00023983,2]
[381568504,1756285863707,-480.0,0.00023983,2]
[381568505,1756285863716,-604.48,0.00023983,2]
[381568506,1756285863726,-480.0,0.00023983,2]
[381568507,1756285863736,-912.71,0.00023983,2]
[381568508,1756285863746,-712.92,0.00023983,2]
[381568509,1756285863756,-693.87,0.00023983,2]
[381568510,1756285863765,-842.6,0.00023983,2]
[381568511,1756285863775,-480.0,0.00023983,2]
[381568512,1756285863785,-764.06,0.00023983,2]
[381568513,1756285863794,-480.09,0.00023985,2]
[381568514,1756285863804,-480.0,0.00023985,2]
[381568515,1756285863814,-928.11,0.00023985,2]
[381568516,1756285863823,-480.0,0.00023985,2]
[381568517,1756285863833,-1912.74,0.00023985,2]
[381568518,1756285863843,-7935.53,0.00023985,2]
[381568519,1756285863852,-3188.91,0.00023985,2]
[381568520,1756285863861,-661.24,0.00023985,2]
[381568521,1756285863871,-1287.31,0.00023985,2]
[381568522,1756285863882,-7833.3,0.00023985,2]
[381568523,1756285863896,-152.159272,0.00023986,7]
[381568524,1756285863906,-1493.34,0.00023986,2]
[381568525,1756285863915,-824.96,0.00023986,2]
[381568526,1756285863925,-579.94,0.00023986,2]
[381568527,1756285863935,-830.02,0.00023986,2]
[381568528,1756285863945,-970.25,0.00023986,2]
[381568529,1756285863955,-480.0,0.00023986,2]
[381568530,1756285863964,-786.53,0.00023986,2]
[381568531,1756285863974,-848.93,0.00023986,2]
[381568532,1756285863983,-789.12,0.00023986,2]
[381568533,1756285863993,-1366.37,0.00023986,2]
[381568534,1756285864002,-566.14,0.00023986,2]
[381568535,1756285864011,-480.0,0.00023986,2]
[381568536,1756285864021,-678.67,0.00023986,2]
[381568537,1756285864031,-168.46396933,0.00023986,2]
[381568538,1756285864040,-822.43,0.00023986,2]
[381568539,1756285864050,-1389.22,0.00023986,2]
[381568540,1756285864059,-704.2,0.00023986,2]
[381568541,1756285864069,-792.52,0.00023986,2]
[381568542,1756285864079,-1169.64,0.00023986,2]
[381568543,1756285864092,-480.0,0.00023986,2]
[381568544,1756285864101,-480.0,0.00023986,2]
[381568545,1756285864111,-1043.59,0.00023986,2]
[381568546,1756285864120,-480.0,0.00023986,2]
[381568547,1756285864131,-480.0,0.00023986,2]
[381568548,1756285864143,-480.0,0.00023986,2]
[381568549,1756285864152,-618.15,0.00023986,2]
[381568550,1756285864162,-1320.45,0.00023986,2]
[381568551,1756285864172,-841.41,0.00023986,2]
[381568552,1756285864183,-619.37,0.00023986,2]
[381568553,1756285864192,-533.22,0.00023986,2]
[381568554,1756285864202,-872.01,0.00023986,2]
[381568555,1756285864211,-646.46,0.00023986,2]
[381568556,1756285864221,-480.0,0.00023986,2]
[381568557,1756285864231,-480.0,0.00023986,2]
[381568558,1756285864242,-938.57,0.00023986,2]
[381568559,1756285864251,-597.03,0.00023986,2]
[381568560,1756285864260,-942.59,0.00023986,2]
[381568561,1756285864269,-2221.35,0.00023986,2]
[381568562,1756285864278,-480.0,0.00023986,2]
[381568563,1756285864288,-730.56,0.00023986,2]
[381568564,1756285864297,-480.0,0.00023986,2]
[381568565,1756285864307,-480.0,0.00023986,2]
[381568566,1756285864316,-1151.88,0.00023986,2]
[381568567,1756285864326,-723.52,0.00023986,2]
[381568568,1756285864335,-622.95,0.00023986,2]
[381568569,1756285864344,-151.0,0.00023986,7]
[381568570,1756285864354,-722.75,0.00023986,2]
[381568571,1756285864363,-2892.81,0.00023986,2]
[381568572,1756285864373,-1014.18,0.00023986,2]
[381568573,1756285864382,-206.125945,0.00023986,7]
[381568574,1756285864394,-206.125945,0.00023986,7]
[381568575,1756285864404,-206.125945,0.00023986,7]
[381568576,1756285864413,-206.125953,0.00023986,7]
[381568577,1756285864423,-480.0,0.00023986,2]
[381568578,1756285864432,-1664.28,0.00023986,2]
[381568579,1756285864441,-480.0,0.00023986,2]
[381568580,1756285864451,-989.88,0.00023986,2]
[381568581,1756285864460,-954.3,0.00023986,2]
[381568582,1756285864470,-1583.05,0.00023986,2]
[381568583,1756285864479,-696.96,0.00023986,2]
[381568584,1756285864488,-1095.71,0.00023986,2]
[381568585,1756285864497,-1292.01,0.00023986,2]
[381568586,1756285864507,-7005.01,0.00023986,2]
[381568587,1756285864516,-1021.23,0.00023986,2]
[381568588,1756285864525,-480.0,0.00023986,2]
[381568589,1756285864535,-480.0,0.00023986,2]
[381568590,1756285864545,-1613.16,0.00023986,2]
[381568591,1756285864554,-767.01,0.00023986,2]
[381568592,1756285864564,-1041.73,0.00023986,2]
[381568593,1756285864573,-480.0,0.00023986,2]
[381568594,1756285864582,-1932.71,0.00023986,2]
[381568595,1756285864591,-480.0,0.00023986,2]
[381568596,1756285864600,-480.0,0.00023986,2]
[381568597,1756285864610,-480.0,0.00023986,2]
[381568598,1756285864619,-1275.38,0.00023986,2]
[381568599,1756285864629,-828.36,0.00023986,2]
[381568600,1756285864638,-480.0,0.00023986,2]
[381568601,1756285864648,-596.07,0.00023986,2]
[381568602,1756285864657,-971.07,0.00023986,2]
[381568603,1756285864667,-480.0,0.00023986,2]
[381568604,1756285864676,-480.0,0.00023986,2]
[381568605,1756285864685,-777.08,0.00023986,2]
[381568606,1756285864694,-591.62,0.00023986,2]
[381568607,1756285864703,-626.87,0.00023986,2]
[381568608,1756285864712,-480.0,0.00023986,2]
[381568609,1756285864722,-480.0,0.00023986,2]
[381568610,1756285864731,-480.0,0.00023986,2]
[381568611,1756285864740,-866.92,0.00023986,2]
[381568612,1756285864749,-480.0,0.00023987,2]
[381568613,1756285864758,-294.07531134,0.00023987,2]
[381568614,1756285864767,-880.24,0.00023987,2]
[381568615,1756285864776,-480.0,0.00023987,2]
[381568616,1756285864785,-480.0,0.00023987,2]
[381568617,1756285864794,-480.0,0.00023987,2]
[381568618,1756285864803,-480.0,0.00023987,2]
[381568619,1756285864813,-480.0,0.00023987,2]
[381568620,1756285864822,-480.0,0.00023987,2]
[381568621,1756285864832,-692.95,0.00023987,2]
[381568622,1756285864841,-480.0,0.00023987,2]
[381568623,1756285864850,-480.0,0.00023987,2]
[381568624,1756285864859,-480.0,0.00023987,2]
[381568625,1756285864868,-480.0,0.00023987,2]
[381568626,1756285864877,-629.17,0.00023987,2]
[381568627,1756285864886,-480.0,0.00023987,2]
[381568628,1756285864895,-737.21,0.00023987,2]
[381568629,1756285864904,-458.45181433,0.00023987,2]
[381568630,1756285864913,-480.0,0.00023987,2]
[381568631,1756285864923,-773.62,0.00023987,2]
[381568632,1756285864932,-480.0,0.00023987,2]
[381568633,1756285864942,-888.62,0.00023987,2]
[381568634,1756285864951,-627.03,0.00023987,2]
[381568635,1756285864960,-613.83,0.00023987,2]
[381568636,1756285864969,-480.0,0.00023987,2]
[381568637,1756285864979,-973.97,0.00023987,2]
[381568638,1756285864988,-1191.58,0.00023987,2]
[381568639,1756285864997,-480.0,0.00023987,2]
[381568640,1756285865006,-480.0,0.00023987,2]
[381568641,1756285865015,-666.29,0.00023987,2]
[381568642,1756285865025,-770.58,0.00023987,2]
[381568643,1756285865034,-745.81,0.00023987,2]
[381568644,1756285865043,-480.0,0.00023987,2]
[381568645,1756285865052,-515.48,0.00023987,2]
[381568646,1756285865061,-820.08,0.00023987,2]
[381568647,1756285865070,-480.0,0.00023987,2]
[381568648,1756285865079,-480.0,0.00023987,2]
[381568649,1756285865091,-480.0,0.00023987,2]
[381568650,1756285865100,-480.0,0.00023987,2]
[381568651,1756285865109,-480.0,0.00023987,2]
[381568652,1756285865118,-480.0,0.00023987,2]
[381568653,1756285865128,-361.98879867,0.00023987,2]
[381568654,1756285865139,-482.80836877,0.00023987,2]
[381568655,1756285865149,-673.98,0.00023987,2]
[381568656,1756285865159,-247.00725548,0.00023987,2]
[381568657,1756285865169,-480.0,0.00023987,2]
[381568658,1756285865179,-480.0,0.00023987,2]
[381568659,1756285865188,-480.0,0.00023987,2]
[381568660,1756285865197,-480.0,0.00023987,2]
[381568661,1756285865206,-1020.13,0.00023987,2]
[381568662,1756285865215,-578.37,0.00023987,2]
[381568663,1756285865224,-480.0,0.00023987,2]
[381568664,1756285865233,-480.0,0.00023987,2]
[381568665,1756285865243,-480.0,0.00023987,2]
[381568666,1756285865253,-624.75,0.00023987,2]
[381568667,1756285865262,-781.52,0.00023987,2]
[381568668,1756285865271,-480.0,0.00023987,2]
[381568669,1756285865280,-1465.99,0.00023987,2]
[381568670,1756285865290,-483.52762212,0.00023987,2]
[381568671,1756285865299,-480.0,0.00023987,2]
[381568672,1756285865309,-480.0,0.00023987,2]
[381568673,1756285865318,-480.0,0.00023987,2]
[381568674,1756285865327,-743.51,0.00023987,2]
[381568675,1756285865337,-1289.28,0.00023987,2]
[381568676,1756285865346,-480.0,0.00023987,2]
[381568677,1756285865355,-480.0,0.00023987,2]
[381568678,1756285865365,-625.0,0.00023987,2]
[381568679,1756285865374,-480.0,0.00023987,2]
[381568680,1756285865384,-486.16,0.00023987,2]
[381568681,1756285865393,-568.25,0.00023987,2]
[381568682,1756285865403,-515.56,0.00023987,2]
[381568683,1756285865538,-480.0,0.00023987,2]
[381568684,1756285865561,-781.98,0.00023987,2]
[381568685,1756285865571,-482.10792936,0.00023987,2]
[381568686,1756285865580,-832.33,0.00023987,2]
[381568687,1756285865590,-480.0,0.00023987,2]
[381568688,1756285865599,-480.0,0.00023987,2]
[381568689,1756285865609,-481.47477782,0.00023987,2]
[381568690,1756285865618,-480.0,0.00023987,2]
[381568691,1756285865627,-480.0,0.00023987,2]
[381568692,1756285865637,-480.0,0.00023987,2]
[381568693,1756285865646,-480.0,0.00023987,2]
[381568694,1756285865656,-503.83,0.00023987,2]
[381568695,1756285865665,-550.42,0.00023987,2]
[381568696,1756285865674,-831.45,0.00023987,2]
[381568697,1756285865684,-938.52,0.00023987,2]
[381568698,1756285865693,-480.0,0.00023987,2]
[381568699,1756285865703,-480.0,0.00023987,2]
[381568700,1756285865713,-493.45,0.00023987,2]